fUSD/lending_fUSD_20241104
["ID","MTS","AMOUNT","RATE_DAILY","PERIOD"]
[341251817,1730725926816,-153.0,0.0004115,31]
[341251818,1730725926825,-153.0,0.0004115,31]
[341251819,1730725926835,-495.88,0.00041185,2]
[341251820,1730725926845,-150.0,0.00041194,30]
[341251821,1730725926854,-5000.0,0.00041199,2]
[341251822,1730725926863,-25000.0,0.0004121,2]
[341251823,1730725926872,-568.19520488,0.00041221,60]
[341251824,1730725926881,-2854.94,0.00041247,2]
[341251825,1730725926891,-5000.0,0.00041277,2]
[341251826,1730725926900,-150.0,0.00041286,30]
[341251827,1730725926909,-1561.55,0.0004132,2]
[341251828,1730725926919,-150.0,0.00041332,30]
[341251829,1730725926928,-580.29,0.00041369,2]
[341251830,1730725926937,-1598.15,0.00041369,2]
[341251831,1730725926947,-570.89,0.00041369,2]
[341251832,1730725926957,-956.54,0.00041369,7]
[341251833,1730725926966,-1552.92,0.00041369,2]
[341251834,1730725926975,-767.02,0.00041369,2]
[341251835,1730725926984,-530.64,0.00041369,2]
[341251836,1730725926994,-1163.84,0.00041369,2]
[341251837,1730725927003,-614.39,0.00041369,2]
[341251838,1730725927012,-641.85,0.00041369,2]
[341251839,1730725927022,-750.25,0.00041369,2]
[341251840,1730725927031,-1037.16,0.00041369,2]
[341251841,1730725927041,-417.10148605,0.00041369,2]
[341251842,1730725927051,-538.4,0.00041369,2]
[341251843,1730725927060,-927.41,0.00041369,2]
[341251844,1730725927070,-607.03,0.00041369,2]
[341251845,1730725927080,-527.13,0.00041369,2]
[341251846,1730725927090,-444.98686534,0.00041369,2]
[341251847,1730725927101,-1674.02,0.00041369,120]
[341251848,1730725927113,-3101.46,0.00041369,2]
[341251849,1730725927123,-809.09,0.00041369,2]
[341251850,1730725927133,-620.71,0.00041369,2]
[341251851,1730725927142,-1809.12,0.00041369,2]
[341251852,1730725927152,-601.59,0.00041369,2]
[341251853,1730725927161,-1995.05,0.00041369,2]
[341251854,1730725927170,-1008.77,0.00041369,2]
[341251855,1730725927180,-623.02,0.00041369,2]
[341251856,1730725927190,-511.36688454,0.00041369,2]
[341251857,1730725927199,-500.0,0.00041369,2]
[341251858,1730725927208,-157.18,0.00041369,2]
[341251859,1730725927218,-1165.65,0.00041369,2]
[341251860,1730725927227,-512.83,0.00041369,2]
[341251861,1730725927236,-1331.81,0.00041369,2]
[341251862,1730725927246,-972.11,0.00041369,2]
[341251863,1730725927257,-500.0,0.00041369,2]
[341251864,1730725927267,-1002.08,0.00041369,2]
[341251865,1730725927276,-1341.72,0.00041369,2]
[341251866,1730725927286,-1042.98,0.00041369,2]
[341251867,1730725927295,-1342.69,0.00041369,2]
[341251868,1730725927305,-7421.53,0.00041369,2]
[341251869,1730725927316,-500.0,0.00041369,2]
[341251870,1730725927327,-3370.41,0.00041369,2]
[341251871,1730725927336,-624.26,0.00041369,2]
[341251872,1730725927346,-707.91,0.00041369,2]
[341251873,1730725927356,-10707.45,0.00041369,2]
[341251874,1730725927368,-831.55,0.00041369,2]
[341251875,1730725927377,-1217.0,0.00041369,2]
[341251876,1730725927386,-2695.19,0.00041369,2]
[341251877,1730725927395,-575.84,0.00041369,2]
[341251878,1730725927404,-646.31,0.00041369,2]
[341251879,1730725927414,-3535.86,0.00041369,2]
[341251880,1730725927423,-540.81,0.00041369,2]
[341251881,1730725927432,-830.33,0.00041369,2]
[341251882,1730725927442,-845.84,0.00041369,2]
[341251883,1730725927451,-918.13,0.00041369,2]
[341251884,1730725927460,-1204.33,0.00041369,2]
[341251885,1730725927469,-749.48,0.00041369,2]
[341251886,1730725927478,-1387.35,0.00041369,2]
[341251887,1730725927488,-1564.21,0.00041369,2]
[341251888,1730725927498,-806.53,0.00041369,2]
[341251889,1730725927509,-5168.13,0.00041369,2]
[341251890,1730725927519,-10163.36,0.00041369,2]
[341251891,1730725927529,-2866.16,0.00041369,2]
[341251892,1730725927538,-500.0,0.00041369,2]
[341251893,1730725927547,-691.73,0.00041369,2]
[341251894,1730725927557,-1019.92,0.00041369,2]
[341251895,1730725927567,-5461.87,0.00041369,2]
[341251896,1730725927575,-2771.6,0.00041369,2]
[341251897,1730725927585,-500.0,0.00041369,2]
[341251898,1730725927594,-10956.67,0.00041369,2]
[341251899,1730725927603,-1965.9,0.00041369,2]
[341251900,1730725927614,-1761.84,0.00041369,2]
[341251901,1730725927624,-1595.14,0.00041369,2]
[341251902,1730725927633,-568.68,0.00041369,2]
[341251903,1730725927643,-500.0,0.00041369,2]
[341251904,1730725927653,-10530.0,0.00041369,2]
[341251905,1730725927662,-1163.57,0.00041369,2]
[341251906,1730725927672,-1268.02,0.00041369,2]
[341251907,1730725927682,-529.02,0.00041369,2]
[341251908,1730725927691,-1038.33,0.00041369,2]
[341251909,1730725927700,-2034.7,0.00041369,2]
[341251910,1730725927710,-755.3,0.00041369,2]
[341251911,1730725927719,-1475.39,0.00041369,2]
[341251912,1730725927729,-901.25,0.00041369,2]
[341251913,1730725927739,-4571.88,0.00041369,2]
[341251914,1730725927749,-5855.7,0.00041369,2]
[341251915,1730725927760,-1827.95,0.00041369,2]
[341251916,1730725927772,-780.78,0.00041369,2]
[341251917,1730725927782,-541.5,0.00041369,2]
[341251918,1730725927792,-348.53494825,0.00041369,2]
[341251919,1730725927803,-1576.72,0.00041369,2]
[341251920,1730725927813,-976.95,0.00041369,2]
[341251921,1730725927823,-3971.77,0.00041369,2]
[341251922,1730725927833,-150.0,0.00041373,30]
[341251923,1730725927844,-5000.0,0.00041401,2]
[341251924,1730725927854,-4295.59,0.0004142,2]
[341251925,1730725927864,-369.57,0.00041429,2]
[341251926,1730725927873,-5000.0,0.00041447,2]
[341251927,1730725927883,-2531.29,0.00041479,2]
[341251928,1730725927892,-1428.81,0.00041489,2]
[341251929,1730725927902,-1016.775844,0.000415,53]
[341251930,1730725927911,-5000.0,0.00041509,2]
[341251931,1730725927921,-16520.6,0.00041521,2]
[341251932,1730725927932,-5000.0,0.00041521,2]
[341251933,1730725927943,-5000.0,0.00041553,2]
[341251934,1730725927953,-150.0,0.00041616,2]
[341251935,1730725927963,-150.0,0.00041633,30]
[341251936,1730725927973,-580.29,0.00041643,2]
[341251937,1730725927982,-1598.15,0.00041643,2]
[341251938,1730725927992,-570.89,0.00041643,2]
[341251939,1730725928001,-956.54,0.00041643,7]
[341251940,1730725928011,-1552.92,0.00041643,2]
[341251941,1730725928020,-767.02,0.00041643,2]
[341251942,1730725928030,-530.64,0.00041643,2]
[341251943,1730725928040,-1163.84,0.00041643,2]
[341251944,1730725928049,-614.39,0.00041643,2]
[341251945,1730725928059,-641.85,0.00041643,2]
[341251946,1730725928068,-750.25,0.00041643,2]
[341251947,1730725928078,-1037.16,0.00041643,2]
[341251948,1730725928087,-538.4,0.00041643,2]
[341251949,1730725928097,-927.41,0.00041643,2]
[341251950,1730725928107,-607.03,0.00041643,2]
[341251951,1730725928118,-527.13,0.00041643,2]
[341251952,1730725928128,-1674.02,0.00041643,120]
[341251953,1730725928138,-3101.46,0.00041643,2]
[341251954,1730725928147,-809.09,0.00041643,2]
[341251955,1730725928156,-620.71,0.00041643,2]
[341251956,1730725928166,-1809.12,0.00041643,2]
[341251957,1730725928176,-601.59,0.00041643,2]
[341251958,1730725928185,-1995.05,0.00041643,2]
[341251959,1730725928194,-1008.77,0.00041643,2]
[341251960,1730725928203,-623.02,0.00041643,2]
[341251961,1730725928213,-500.0,0.00041643,2]
[341251962,1730725928223,-157.18,0.00041643,2]
[341251963,1730725928233,-1165.65,0.00041643,2]
[341251964,1730725928243,-512.83,0.00041643,2]
[341251965,1730725928253,-1331.81,0.00041643,2]
[341251966,1730725928263,-972.11,0.00041643,2]
[341251967,1730725928272,-369.79808063,0.00041643,2]
[341251968,1730725928281,-1002.08,0.00041643,2]
[341251969,1730725928291,-1341.72,0.00041643,2]
[341251970,1730725928301,-1042.98,0.00041643,2]
[341251971,1730725928310,-1342.69,0.00041643,2]
[341251972,1730725928320,-7421.53,0.00041643,2]
[341251973,1730725928330,-308.97297377,0.00041643,2]
[341251974,1730725928341,-3370.41,0.00041643,2]
[341251975,1730725928350,-624.26,0.00041643,2]
[341251976,1730725928359,-707.91,0.00041643,2]
[341251977,1730725928375,-10707.45,0.00041643,2]
[341251978,1730725928385,-831.55,0.00041643,2]
[341251979,1730725928395,-1217.0,0.00041643,2]
[341251980,1730725928404,-2695.19,0.00041643,2]
[341251981,1730725928413,-575.84,0.00041643,2]
[341251982,1730725928423,-646.31,0.00041643,2]
[341251983,1730725928432,-3535.86,0.00041643,2]
[341251984,1730725928442,-540.81,0.00041643,2]
[341251985,1730725928452,-830.33,0.00041643,2]
[341251986,1730725928462,-845.84,0.00041643,2]
[341251987,1730725928472,-918.13,0.00041643,2]
[341251988,1730725928482,-1204.33,0.00041643,2]
[341251989,1730725928492,-749.48,0.00041643,2]
[341251990,1730725928503,-1387.35,0.00041643,2]
[341251991,1730725928515,-1564.21,0.00041643,2]
[341251992,1730725928524,-806.53,0.00041643,2]
[341251993,1730725928534,-5168.13,0.00041643,2]
[341251994,1730725928544,-10163.36,0.00041643,2]
[341251995,1730725928554,-2866.16,0.00041643,2]
[341251996,1730725928563,-415.09046974,0.00041643,2]
[341251997,1730725928573,-691.73,0.00041643,2]
[341251998,1730725928582,-1019.92,0.00041643,2]
[341251999,1730725928592,-5461.87,0.00041643,2]
[341252000,1730725928602,-2771.6,0.00041643,2]
[341252001,1730725928611,-500.0,0.00041643,2]
[341252002,1730725928622,-10956.67,0.00041643,2]
[341252003,1730725928631,-1965.9,0.00041643,2]
[341252004,1730725928642,-1761.84,0.00041643,2]
[341252005,1730725928652,-1595.14,0.00041643,2]
[341252006,1730725928662,-568.68,0.00041643,2]
[341252007,1730725928672,-631.58435859,0.00041643,2]
[341252008,1730725928682,-10530.0,0.00041643,2]
[341252009,1730725928692,-1163.57,0.00041643,2]
[341252010,1730725928702,-1268.02,0.00041643,2]
[341252011,1730725928712,-529.02,0.00041643,2]
[341252012,1730725928722,-1038.33,0.00041643,2]
[341252013,1730725928731,-2034.7,0.00041643,2]
[341252014,1730725928741,-755.3,0.00041643,2]
[341252015,1730725928751,-1475.39,0.00041643,2]
[341252016,1730725928763,-901.25,0.00041643,2]
[341252017,1730725928774,-4571.88,0.00041643,2]
[341252018,1730725928784,-5855.7,0.00041643,2]
[341252019,1730725928794,-1827.95,0.00041643,2]
[341252020,1730725928804,-780.78,0.00041643,2]
[341252021,1730725928815,-541.5,0.00041643,2]
[341252022,1730725928827,-1576.72,0.00041643,2]
[341252023,1730725928836,-976.95,0.00041643,2]
[341252024,1730725928848,-3971.77,0.00041643,2]
[341252025,1730725928858,-150.0,0.00041655,30]
[341252026,1730725928869,-1005.5,0.000417,30]
[341252027,1730725928879,-297.53485192,0.000417,2]
[341252028,1730725928888,-139532.23826524,0.000417,7]
[341252029,1730725928898,-2906.0,0.00041729,2]
[341252030,1730725928908,-5000.0,0.00041743,2]
[341252031,1730725928918,-800.0,0.00041769,60]
[341252032,1730725928929,-2000.0,0.00041769,60]
[341252033,1730725928939,-5000.0,0.00041778,2]
[341252034,1730725928949,-4515.86,0.0004178,120]
[341252035,1730725928958,-500.0,0.00041788,30]
[341252036,1730725928968,-87116.50720371,0.000418,2]
[341252037,1730725928978,-152.41,0.000418,31]
[341252038,1730725928987,-152.41,0.000418,31]
[341252039,1730725928997,-152.41,0.000418,31]
[341252040,1730725929007,-152.41,0.000418,31]
[341252041,1730725929017,-152.41,0.000418,31]
[341252042,1730725929027,-152.41,0.000418,31]
[341252043,1730725929037,-152.41,0.000418,31]
[341252044,1730725929047,-152.41,0.000418,31]
[341252045,1730725929056,-152.41,0.000418,31]
[341252046,1730725929067,-152.41,0.000418,31]
[341252047,1730725929077,-152.41,0.000418,31]
[341252048,1730725929087,-152.41,0.000418,31]
[341252049,1730725929097,-152.41,0.000418,31]
[341252050,1730725929107,-152.41,0.000418,31]
[341252051,1730725929118,-500.0,0.00041813,30]
[341252052,1730725929128,-500.0,0.00041868,30]
[341252053,1730725929137,-1574.4742292,0.00041889,120]
[341252054,1730725929147,-150.0,0.00041893,30]
[341252055,1730725929157,-179.76133896,0.000419,5]
[341252056,1730725929167,-8670.42192342,0.000419,15]
[341252057,1730725929177,-200.0,0.000419,15]
[341252058,1730725929186,-217.29163824,0.000419,2]
[341252059,1730725929196,-3754.56087733,0.000419,2]
[341252060,1730725929206,-580.30943748,0.00041917,2]
[341252061,1730725929216,-1598.32669652,0.00041917,2]
[341252062,1730725929226,-571.06021068,0.00041917,2]
[341252063,1730725929236,-956.66437758,0.00041917,7]
[341252064,1730725929245,-1553.04213143,0.00041917,2]
[341252065,1730725929255,-767.16312568,0.00041917,2]
[341252066,1730725929265,-530.86,0.00041917,2]
[341252067,1730725929275,-1164.03872287,0.00041917,2]
[341252068,1730725929284,-614.59608945,0.00041917,2]
[341252069,1730725929294,-642.06879298,0.00041917,2]
[341252070,1730725929304,-750.31841889,0.00041917,2]
[341252071,1730725929314,-1037.30010241,0.00041917,2]
[341252072,1730725929325,-538.45336871,0.00041917,2]
[341252073,1730725929335,-927.58898891,0.00041917,2]
[341252074,1730725929347,-607.26195499,0.00041917,2]
[341252075,1730725929357,-527.15103492,0.00041917,2]
[341252076,1730725929370,-1674.0867494,0.00041917,120]
[341252077,1730725929379,-3101.63534278,0.00041917,2]
[341252078,1730725929389,-809.20430252,0.00041917,2]
[341252079,1730725929399,-620.86812531,0.00041917,2]
[341252080,1730725929409,-1809.14851284,0.00041917,2]
[341252081,1730725929419,-601.65161102,0.00041917,2]
[341252082,1730725929429,-1995.23540262,0.00041917,2]
[341252083,1730725929439,-1008.81294528,0.00041917,2]
[341252084,1730725929449,-623.06998762,0.00041917,2]
[341252085,1730725929460,-468.04565484,0.00041917,2]
[341252086,1730725929471,-157.33714352,0.00041917,2]
[341252087,1730725929482,-1165.69971678,0.00041917,2]
[341252088,1730725929493,-512.87030163,0.00041917,2]
[341252089,1730725929504,-1331.87794436,0.00041917,2]
[341252090,1730725929515,-972.21528737,0.00041917,2]
[341252091,1730725929525,-1002.29281276,0.00041917,2]
[341252092,1730725929536,-1341.95490734,0.00041917,2]
[341252093,1730725929546,-1042.99088869,0.00041917,2]
[341252094,1730725929557,-1342.74176946,0.00041917,2]
[341252095,1730725929567,-7421.62720055,0.00041917,2]
[341252096,1730725929578,-3370.48209739,0.00041917,2]
[341252097,1730725929588,-624.4972913,0.00041917,2]
[341252098,1730725929598,-708.02497119,0.00041917,2]
[341252099,1730725929608,-10707.4568,0.00041917,2]
[341252100,1730725929622,-831.7301933,0.00041917,2]
[341252101,1730725929632,-1217.12900692,0.00041917,2]
[341252102,1730725929642,-2695.35409419,0.00041917,2]
[341252103,1730725929652,-575.92085582,0.00041917,2]
[341252104,1730725929662,-646.47255482,0.00041917,2]
[341252105,1730725929672,-3535.90823322,0.00041917,2]
[341252106,1730725929682,-541.00916107,0.00041917,2]
[341252107,1730725929692,-830.39852657,0.00041917,2]
[341252108,1730725929703,-846.04570651,0.00041917,2]
[341252109,1730725929713,-918.17802037,0.00041917,2]
[341252110,1730725929722,-1204.41751441,0.00041917,2]
[341252111,1730725929733,-749.498756,0.00041917,2]
[341252112,1730725929743,-1387.46643236,0.00041917,2]
[341252113,1730725929753,-1564.4147,0.00041917,2]
[341252114,1730725929766,-806.68338162,0.00041917,2]
[341252115,1730725929776,-5168.24847547,0.00041917,2]
[341252116,1730725929786,-10163.5672611,0.00041917,2]
[341252117,1730725929796,-2866.18113191,0.00041917,2]
[341252118,1730725929807,-691.90589682,0.00041917,2]
[341252119,1730725929817,-1020.12134776,0.00041917,2]
[341252120,1730725929827,-5461.96412927,0.00041917,2]
[341252121,1730725929839,-2771.64744523,0.00041917,2]
[341252122,1730725929849,-288.47963355,0.00041917,2]
[341252123,1730725929859,-10956.83921183,0.00041917,2]
[341252124,1730725929874,-1966.13236758,0.00041917,2]
[341252125,1730725929884,-1761.84758716,0.00041917,2]
[341252126,1730725929894,-1595.3220362,0.00041917,2]
[341252127,1730725929904,-568.74790391,0.00041917,2]
[341252128,1730725929914,-10530.03955845,0.00041917,2]
[341252129,1730725929924,-1163.68014372,0.00041917,2]
[341252130,1730725929934,-1268.19753663,0.00041917,2]
[341252131,1730725929944,-529.03608092,0.00041917,2]
[341252132,1730725929954,-1038.4856748,0.00041917,2]
[341252133,1730725929964,-2034.71724726,0.00041917,2]
[341252134,1730725929973,-755.53977199,0.00041917,2]
[341252135,1730725929983,-1475.56029269,0.00041917,2]
[341252136,1730725929994,-901.37620012,0.00041917,2]
[341252137,1730725930004,-4572.07120519,0.00041917,2]
[341252138,1730725930014,-5855.86,0.00041917,2]
[341252139,1730725930024,-1828.15616013,0.00041917,2]
[341252140,1730725930229,-780.97684184,0.00041917,2]
[341252141,1730725930239,-541.64243367,0.00041917,2]
[341252142,1730725930248,-1576.77054195,0.00041917,2]
[341252143,1730725930259,-977.08,0.00041917,2]
[341252144,1730725930268,-3971.89,0.00041917,2]
[341252145,1730725930277,-184.62500694,0.00041918,30]
[341252146,1730725930287,-5000.0,0.00041924,2]
[341252147,1730725930296,-24751.16213786,0.00041924,30]
[341252148,1730725930306,-3168.13,0.00041938,2]
[341252149,1730725930315,-4575.08,0.0004195,2]
[341252150,1730725930324,-1758.13,0.00041963,2]
[341252151,1730725930333,-25000.0,0.00041966,2]
[341252152,1730725930343,-4059.95,0.00041989,2]
[341252153,1730725930352,-8881.42732193,0.00042,2]
[341252154,1730725930362,-148159.42193276,0.00042,2]
[341252155,1730725930375,-576.0,0.00042,2]
[341252156,1730725930385,-183141.06278882,0.00042,30]
[341252157,1730725930394,-1000.0,0.00042,120]
[341252158,1730725930404,-3000.0,0.00042,30]
[341252159,1730725930413,-151.0,0.00042,120]
[341252160,1730725930422,-461.784,0.00042,120]
[341252161,1730725930432,-439.01537351,0.00042,120]
[341252162,1730725930441,-432.7041036,0.00042,14]
[341252163,1730725930451,-2709.96,0.00042,60]
[341252164,1730725930461,-164.0,0.00042,120]
[341252165,1730725930471,-3712945.0,0.00042,2]
[341252166,1730725930481,-150.0,0.00042,7]
[341252167,1730725930491,-274134.49724674,0.00042,2]
[341252168,1730725930501,-359.18992239,0.00042,30]
[341252169,1730725930510,-24751.16213786,0.00042,30]
[341252170,1730725930519,-297.53485191,0.00042,2]
[341252171,1730725930529,-500.0,0.00042009,30]
[341252172,1730725930539,-1317.14163092,0.0004201,2]
[341252173,1730725930549,-150.0,0.00042023,30]
[341252174,1730725930559,-150.0,0.00042023,30]
[341252175,1730725930568,-500.0,0.00042024,30]
[341252176,1730725930578,-152.0,0.00042066,8]
[341252177,1730725930589,-500.0,0.00042082,30]
[341252178,1730725930599,-500.0,0.00042083,30]
[341252179,1730725930609,-150.0,0.00042103,2]
[341252180,1730725930623,-1006.53,0.00042128,2]
[341252181,1730725930633,-150.0,0.00042153,30]
[341252182,1730725930643,-150.0,0.00042177,2]
[341252183,1730725930653,-776.06317374,0.00042208,30]
[341252184,1730725930663,-55185.63942812,0.00042236,21]
[341252185,1730725930672,-500.0,0.00042273,30]
[341252186,1730725930682,-500.0,0.00042282,30]
[341252187,1730725930691,-500.0,0.00042306,30]
[341252188,1730725930700,-1000.0,0.00042375,2]
[341252189,1730725930711,-150.0,0.00042392,30]
[341252190,1730725930720,-500.0,0.00042395,30]
[341252191,1730725930730,-150.0,0.00042414,30]
[341252192,1730725930740,-500.0,0.00042456,30]
[341252193,1730725930750,-4515.86,0.00042465,120]
[341252194,1730725930761,-5014.16147,0.00042466,30]
[341252195,1730725930772,-184.62500694,0.00042466,30]
[341252196,1730725930783,-199.110419,0.00042498,120]
[341252197,1730725930793,-700.61370217,0.000425,120]
[341252198,1730725930802,-5937.35849273,0.000425,2]
[341252199,1730725930814,-5407.32,0.0004265,30]
[341252200,1730725930823,-5407.32,0.0004265,30]
[341252201,1730725930834,-5407.32,0.0004265,30]
[341252202,1730725930845,-5407.32,0.0004265,30]
[341252203,1730725930855,-7477.61204043,0.00042666,2]
[341252204,1730725930864,-150.0,0.00042674,30]
[341252205,1730725930875,-9456.79226664,0.000427,33]
[341252206,1730725930885,-500.0,0.00042723,30]
[341252207,1730725930894,-237.1115,0.00042726,14]
[341252208,1730725930904,-500.0,0.00042734,30]
[341252209,1730725930914,-150.0,0.0004276,30]
[341252210,1730725930923,-14000.0,0.0004279,30]
[341252211,1730725930933,-2817.91036709,0.00042798,120]
[341252212,1730725930942,-10417.0,0.000428,45]
[341252213,1730725930952,-35000.0,0.000428,5]
[341252214,1730725930962,-35000.0,0.00042809,5]
[341252215,1730725930971,-35000.0,0.00042809,5]
[341252216,1730725930981,-282.3806156,0.00042809,5]
[341252217,1730725930991,-155.639,0.0004284,120]
[341252218,1730725931000,-218.0,0.00042844,2]
[341252219,1730725931009,-6574.49089673,0.00042849,10]
[341252220,1730725931019,-800.0,0.00042865,60]
[341252221,1730725931029,-2000.0,0.00042865,60]
[341252222,1730725931038,-42249.06161072,0.0004288,10]
[341252223,1730725931048,-342.46684356,0.000429,30]
[341252224,1730725931058,-200.0,0.000429,15]
[341252225,1730725931068,-5407.32,0.00042924,30]
[341252226,1730725931077,-5407.32,0.00042924,30]
[341252227,1730725931086,-150.0,0.00042934,30]
[341252228,1730725931096,-522.6296518,0.00042934,30]
[341252229,1730725931105,-150.0,0.00042943,2]
[341252230,1730725931115,-500.0,0.00042967,30]
[341252231,1730725931126,-500.0,0.00042971,30]
[341252232,1730725931136,-150.0,0.00042975,2]
[341252233,1730725931145,-14242.49093659,0.0004299,30]
[341252234,1730725931155,-500.0,0.00042998,7]
[341252235,1730725931164,-500.0,0.00042998,7]
[341252236,1730725931173,-500.0,0.00042998,7]
[341252237,1730725931183,-500.0,0.00042998,7]
[341252238,1730725931192,-500.0,0.00042998,7]
[341252239,1730725931201,-500.0,0.00042998,7]
[341252240,1730725931211,-500.0,0.00042998,7]
[341252241,1730725931220,-500.0,0.00042998,7]
[341252242,1730725931229,-500.0,0.00042998,7]
[341252243,1730725931239,-500.0,0.00042998,7]
[341252244,1730725931248,-500.0,0.00042998,7]
[341252245,1730725931257,-500.0,0.00042998,7]
[341252246,1730725931267,-500.0,0.00042998,7]
[341252247,1730725931276,-500.0,0.00042998,7]
[341252248,1730725931285,-500.0,0.00042998,7]
[341252249,1730725931295,-500.0,0.00042998,7]
[341252250,1730725931305,-500.0,0.00042998,7]
[341252251,1730725931314,-500.0,0.00042998,7]
[341252252,1730725931324,-500.0,0.00042998,7]
[341252253,1730725931333,-500.0,0.00042998,7]
[341252254,1730725931343,-500.0,0.00042998,7]
[341252255,1730725931353,-500.0,0.00042998,7]
[341252256,1730725931362,-500.0,0.00042998,7]
[341252257,1730725931373,-500.0,0.00042998,7]
[341252258,1730725931382,-500.0,0.00042998,7]
[341252259,1730725931392,-500.0,0.00042998,7]
[341252260,1730725931401,-500.0,0.00042998,7]
[341252261,1730725931410,-500.0,0.00042998,7]
[341252262,1730725931419,-500.0,0.00042998,7]
[341252263,1730725931429,-500.0,0.00042998,7]
[341252264,1730725931438,-500.0,0.00042998,7]
[341252265,1730725931447,-500.0,0.00042998,7]
[341252266,1730725931457,-500.0,0.00042998,7]
[341252267,1730725931467,-500.0,0.00042998,7]
[341252268,1730725931476,-500.0,0.00042998,7]
[341252269,1730725931486,-500.0,0.00042998,7]
[341252270,1730725931496,-500.0,0.00042998,7]
[341252271,1730725931505,-500.0,0.00042998,7]
[341252272,1730725931515,-500.0,0.00042998,7]
[341252273,1730725931525,-500.0,0.00042998,7]
[341252274,1730725931534,-500.0,0.00042998,7]
[341252275,1730725931544,-500.0,0.00042998,7]
[341252276,1730725931553,-500.0,0.00042998,7]
[341252277,1730725931564,-500.0,0.00042998,7]
[341252278,1730725931574,-500.0,0.00042998,7]
[341252279,1730725931584,-163.21,0.00042998,7]
[341252280,1730725931595,-500.0,0.00042998,7]
[341252281,1730725931605,-1000.0,0.00042999,120]
[341252282,1730725931614,-181.87751293,0.00043,7]
[341252283,1730725931627,-10185.34224246,0.00043,10]
[341252284,1730725931636,-62906.16982489,0.00043,2]
[341252285,1730725931645,-2324.1778478,0.00043,4]
[341252286,1730725931656,-200000.0,0.00043,7]
[341252287,1730725931666,-1036.0,0.00043,120]
[341252288,1730725931676,-305.38358336,0.00043,30]
[341252289,1730725931685,-1108.85093433,0.00043,14]
[341252290,1730725931695,-3604.699,0.00043,90]
[341252291,1730725931705,-6579.85610575,0.00043,14]
[341252292,1730725931715,-2099.8228,0.00043,30]
[341252293,1730725931724,-2000.0,0.00043,30]
[341252294,1730725931734,-2000.0,0.00043,30]
[341252295,1730725931744,-774.18899182,0.00043,120]
[341252296,1730725931754,-829.121,0.00043,120]
[341252297,1730725931768,-157.13845767,0.00043,120]
[341252298,1730725931777,-50000.0,0.00043,15]
[341252299,1730725931787,-50231.46876835,0.00043,45]
[341252300,1730725931797,-7100.0,0.00043,30]
[341252301,1730725931807,-2000.0,0.00043,30]
[341252302,1730725931816,-4007.76,0.00043,32]
[341252303,1730725931826,-6000.0,0.00043,2]
[341252304,1730725931836,-163.0,0.00043,120]
[341252305,1730725931847,-18622.3,0.00043,30]
[341252306,1730725931856,-800.0,0.00043,2]
[341252307,1730725931866,-3314.07806611,0.00043,120]
[341252308,1730725931876,-184.62500694,0.00043014,30]
[341252309,1730725931885,-500.0,0.00043025,30]
[341252310,1730725931895,-150.0,0.00043028,2]
[341252311,1730725931905,-150.0,0.00043032,2]
[341252312,1730725931915,-150.0,0.0004304,2]
[341252313,1730725931924,-5134.48735901,0.00043041,14]
[341252314,1730725931936,-200.0,0.00043041,14]
[341252315,1730725931946,-119814.64175039,0.00043041,14]
[341252316,1730725931955,-3067.25482881,0.00043044,14]